fUSD/lending_fUSD_20260407
["ID","MTS","AMOUNT","RATE_DAILY","PERIOD"]
[419956015,1775549451863,-153.865783,0.00013699,2]
[419956016,1775549451872,-151.0,0.00013699,2]
[419956017,1775549451881,-1215.539919,0.00013699,2]
[419956018,1775549451890,-153.865783,0.00013699,2]
[419956019,1775549451900,-1215.539917,0.00013699,2]
[419956020,1775549451909,-179.726656,0.00013699,2]
[419956021,1775549451918,-153.865783,0.00013699,2]
[419956022,1775549451928,-153.865783,0.00013699,2]
[419956023,1775549451937,-153.865783,0.00013699,2]
[419956024,1775549451947,-153.865783,0.00013699,2]
[419956025,1775549451956,-153.865783,0.00013699,2]
[419956026,1775549451966,-153.865783,0.00013699,2]
[419956027,1775549451975,-153.865783,0.00013699,2]
[419956028,1775549451984,-153.865783,0.00013699,2]
[419956029,1775549451994,-153.865783,0.00013699,2]
[419956030,1775549452003,-151.0,0.00013699,2]
[419956031,1775549452012,-153.865783,0.00013699,2]
[419956032,1775549452021,-151.0,0.00013699,2]
[419956033,1775549452031,-153.865783,0.00013699,2]
[419956034,1775549452040,-152.740202,0.00013699,2]
[419956035,1775549452050,-153.865783,0.00013699,2]
[419956036,1775549452060,-151.0,0.00013699,2]
[419956037,1775549452070,-153.865783,0.00013699,2]
[419956038,1775549452079,-153.865783,0.00013699,2]
[419956039,1775549452089,-151.0,0.00013699,2]
[419956040,1775549452098,-153.865783,0.00013699,2]
[419956041,1775549452108,-151.0,0.00013699,2]
[419956042,1775549452117,-153.865783,0.00013699,2]
[419956043,1775549452126,-151.0,0.00013699,2]
[419956044,1775549452138,-153.865783,0.00013699,2]
[419956045,1775549452148,-151.0,0.00013699,2]
[419956046,1775549452158,-151.0,0.00013699,2]
[419956047,1775549452168,-153.86579,0.00013699,2]
[419956048,1775549452178,-151.907613,0.00013699,2]
[419956049,1775549452187,-224.650343,0.00013699,2]
[419956050,1775549452197,-151.866004,0.00013699,2]
[419956051,1775549452206,-151.0,0.00013699,2]
[419956052,1775549452216,-147.88650547,0.00013699,2]
[419956053,1775549452259,-3.11349453,0.00013699,2]
[419956054,1775549452269,-151.0,0.00013699,2]
[419956055,1775549452278,-151.0,0.00013699,2]
[419956056,1775549452286,-151.0,0.00013699,2]
[419956057,1775549452295,-161.033614,0.00013699,2]
[419956058,1775549452305,-151.0,0.00013699,2]
[419956059,1775549452314,-151.0,0.00013699,2]
[419956060,1775549452324,-197.677027,0.00013699,2]
[419956061,1775549452334,-151.0,0.00013699,2]
[419956062,1775549452344,-151.000007,0.00013699,2]
[419956063,1775549452353,-168.619394,0.00013699,2]
[419956064,1775549452362,-151.0,0.00013699,2]
[419956065,1775549452371,-151.0,0.00013699,2]
[419956066,1775549452380,-151.0,0.00013699,2]
[419956067,1775549452390,-151.0,0.00013699,2]
[419956068,1775549452399,-102.22213507,0.00013699,2]
[419956069,1775549663282,152.0,6.609e-05,2]
[419956070,1775549663539,152.0,6.609e-05,2]
[419956071,1775549829652,-300.0,9.595e-05,2]
[419956072,1775549829677,-823.3626,9.595e-05,2]
[419956074,1775550030540,-150.0,9.595e-05,2]
[419956075,1775550030564,-100.0,9.595e-05,2]
[419956076,1775550031686,-200.0,9.595e-05,2]
[419956077,1775550031710,-50.0,9.596e-05,2]
[419956078,1775550032496,-250.0,9.596e-05,2]
[419956079,1775550033902,-250.0,9.596e-05,2]
[419956080,1775550034841,-150.0,9.596e-05,2]
[419956081,1775550034866,-100.0,9.597e-05,2]
[419956082,1775550035546,-250.0,9.597e-05,2]
[419956083,1775550036512,-250.0,9.597e-05,2]
[419956084,1775550036955,-250.0,9.597e-05,2]
[419956085,1775550037484,-250.0,9.597e-05,2]
[419956086,1775550037786,-250.0,9.597e-05,2]
[419956087,1775550038091,-250.0,9.597e-05,2]
[419956088,1775550038399,-250.0,9.597e-05,2]
[419956089,1775550038825,-250.0,9.597e-05,2]
[419956090,1775550039314,-250.0,9.597e-05,2]
[419956091,1775550039624,-250.0,9.597e-05,2]
[419956092,1775550042794,-250.0,9.597e-05,2]
[419956093,1775550043516,-250.0,9.597e-05,2]
[419956094,1775550044461,-250.0,9.597e-05,2]
[419956095,1775550045356,-250.0,9.597e-05,2]
[419956096,1775550047038,-250.0,9.597e-05,2]
[419956098,1775550171143,-250.0,9.595e-05,2]
[419956099,1775550172351,-50.0,9.595e-05,2]
[419956100,1775550172374,-200.0,9.596e-05,2]
[419956101,1775550172862,-147.98737912,9.596e-05,2]
[419956102,1775550172890,-102.01262088,9.596e-05,2]
[419956103,1775550173331,-250.0,9.596e-05,2]
[419956104,1775550173702,-147.98737912,9.596e-05,2]
[419956105,1775550173730,-102.01262088,9.596e-05,2]
[419956106,1775550178621,-250.0,9.596e-05,2]
[419956107,1775550179093,-147.98737912,9.596e-05,2]
[419956108,1775550179122,-102.01262088,9.596e-05,2]
[419956109,1775550179571,-250.0,9.596e-05,2]
[419956110,1775550180003,-203.75893931,9.596e-05,2]
[419956111,1775550180032,-46.24106069,9.596e-05,2]
[419956112,1775550180463,-250.0,9.596e-05,2]
[419956113,1775550182630,-203.75893931,9.596e-05,2]
[419956114,1775550182659,-46.24106069,9.596e-05,2]
[419956115,1775550182752,-250.0,9.596e-05,2]
[419956116,1775550182807,-203.75893931,9.596e-05,2]
[419956117,1775550182834,-46.24106069,9.596e-05,2]
[419956118,1775550182883,-250.0,9.596e-05,2]
[419956119,1775550182932,-203.75893931,9.596e-05,2]
[419956120,1775550182960,-46.24106069,9.596e-05,2]
[419956121,1775550183005,-250.0,9.596e-05,2]
[419956122,1775550183188,-203.75893931,9.596e-05,2]
[419956123,1775550183216,-46.24106069,9.596e-05,2]
[419956124,1775550185972,-250.0,9.596e-05,2]
[419956126,1775550186854,-203.75893931,9.596e-05,2]
[419956127,1775550186881,-46.24106069,9.596e-05,2]
[419956128,1775550187259,-250.0,9.596e-05,2]
[419956129,1775550244829,-250.0,9.596e-05,2]
[419956130,1775550246655,-250.0,9.596e-05,2]
[419956131,1775550247511,-228.32445712,9.596e-05,2]
[419956132,1775550247536,-21.67554288,9.596e-05,2]
[419956133,1775550248436,-250.0,9.596e-05,2]
[419956134,1775550248491,-28.32445712,9.596e-05,2]
[419956135,1775550248521,-150.0,9.596e-05,2]
[419956136,1775550248549,-71.67554288,9.597e-05,2]
[419956137,1775550248621,-250.0,9.597e-05,2]
[419956138,1775550248955,-250.0,9.497e-05,2]
[419956139,1775550249413,-250.0,9.497e-05,2]
[419956140,1775550250022,-250.0,9.497e-05,2]
[419956141,1775550250235,-250.0,9.497e-05,2]
[419956142,1775550252043,-250.0,9.497e-05,2]
[419956143,1775550252205,-250.0,9.497e-05,2]
[419956144,1775550252828,-250.0,9.497e-05,2]
[419956145,1775550252967,-250.0,9.497e-05,2]
[419956146,1775550254921,-250.0,9.497e-05,2]
[419956147,1775550255341,-250.0,9.497e-05,2]
[419956148,1775550255704,-250.0,9.497e-05,2]
[419956149,1775550256046,-250.0,9.497e-05,2]
[419956150,1775550256379,-250.0,9.497e-05,2]
[419956151,1775550256690,-250.0,9.497e-05,2]
[419956152,1775550257155,-250.0,9.497e-05,2]
[419956153,1775550257514,-250.0,9.497e-05,2]
[419956154,1775550357543,-250.0,9.496e-05,2]
[419956155,1775550359181,-50.0,9.496e-05,2]
[419956156,1775550359205,-200.0,9.497e-05,2]
[419956157,1775550359570,-250.0,9.497e-05,2]
[419956158,1775550359949,-250.0,9.497e-05,2]
[419956159,1775550360396,-250.0,9.497e-05,2]
[419956160,1775550360883,-250.0,9.497e-05,2]
[419956161,1775550361204,-250.0,9.497e-05,2]
[419956162,1775550361525,-250.0,9.497e-05,2]
[419956163,1775550361848,-250.0,9.497e-05,2]
[419956164,1775550362257,-250.0,9.497e-05,2]
[419956165,1775550362711,-250.0,9.497e-05,2]
[419956166,1775550364103,-250.0,9.497e-05,2]
[419956167,1775550364477,-250.0,9.497e-05,2]
[419956168,1775550364816,-250.0,9.497e-05,2]
[419956169,1775550366507,-250.0,9.497e-05,2]
[419956170,1775550367014,-250.0,9.497e-05,2]
[419956171,1775550369350,-250.0,9.497e-05,2]
[419956172,1775550369419,-250.0,9.497e-05,2]
[419956173,1775550405552,170.75,8.098e-05,2]
[419956174,1775550479645,-250.0,9.397e-05,2]
[419956175,1775550481005,-250.0,9.397e-05,2]
[419956176,1775550482083,-150.0,9.496e-05,2]
[419956177,1775550482107,-100.0,9.497e-05,2]
[419956178,1775550483654,-250.0,9.497e-05,2]
[419956179,1775550488541,-250.0,9.497e-05,2]
[419956180,1775550489619,-250.0,9.497e-05,2]
[419956181,1775550490089,-250.0,9.497e-05,2]
[419956182,1775550490589,-250.0,9.497e-05,2]
[419956183,1775550491095,-250.0,9.497e-05,2]
[419956184,1775550491405,-250.0,9.497e-05,2]
[419956185,1775550491839,-250.0,9.497e-05,2]
[419956186,1775550492340,-250.0,9.497e-05,2]
[419956187,1775550492683,-250.0,9.497e-05,2]
[419956188,1775550492974,-250.0,9.497e-05,2]
[419956189,1775550494161,-250.0,9.497e-05,2]
[419956190,1775550494704,-250.0,9.497e-05,2]
[419956192,1775550497657,-250.0,9.497e-05,2]
[419956193,1775550497731,-250.0,9.497e-05,2]
[419956194,1775550497791,-250.0,9.497e-05,2]
[419956195,1775550497823,-250.0,9.497e-05,2]
[419956196,1775550563297,152.0,6.626e-05,2]
[419956197,1775550602010,-250.0,9.396e-05,2]
[419956198,1775550602350,-50.0,9.396e-05,2]
[419956199,1775550602374,-200.0,9.397e-05,2]
[419956200,1775550602955,-250.0,9.397e-05,2]
[419956201,1775550605031,-250.0,9.397e-05,2]
[419956202,1775550605244,-250.0,9.397e-05,2]
[419956203,1775550605287,-250.0,9.397e-05,2]
[419956204,1775550605329,-250.0,9.397e-05,2]
[419956205,1775550605394,-250.0,9.397e-05,2]
[419956206,1775550610596,-250.0,9.397e-05,2]
[419956207,1775550610913,-250.0,9.397e-05,2]
[419956208,1775550611248,-250.0,9.397e-05,2]
[419956209,1775550611709,-250.0,9.397e-05,2]
[419956210,1775550612164,-250.0,9.397e-05,2]
[419956211,1775550612534,-250.0,9.397e-05,2]
[419956212,1775550612859,-250.0,9.397e-05,2]
[419956213,1775550614376,-35000.0,9.397e-05,2]
[419956214,1775550617296,-250.0,9.397e-05,2]
[419956215,1775550617616,-250.0,9.397e-05,2]
[419956216,1775550617946,-250.0,9.397e-05,2]
[419956217,1775550619651,-250.0,9.397e-05,2]
[419956218,1775550621554,-211.5495,9.397e-05,2]
[419956219,1775550621578,-38.4505,9.496e-05,2]
[419956231,1775550631678,-111.5495,9.496e-05,2]
[419956232,1775550631688,-1541.0985,9.497e-05,2]
[419956233,1775550631733,-675.352,9.497e-05,2]
[419956234,1775550631843,-51145.3275,9.497e-05,2]
[419956235,1775550631852,-500.0,9.596e-05,2]
[419956236,1775550631862,-638.9602014,9.596e-05,2]
[419956237,1775550631873,-500.0,9.596e-05,2]
[419956238,1775550631883,-500.0,9.596e-05,2]
[419956239,1775550631892,-500.0,9.596e-05,2]
[419956240,1775550631902,-500.0,9.596e-05,2]
[419956241,1775550631911,-500.0,9.596e-05,2]
[419956242,1775550631921,-500.0,9.596e-05,2]
[419956243,1775550631930,-500.0,9.596e-05,2]
[419956244,1775550631940,-500.0,9.596e-05,2]
[419956245,1775550631949,-500.0,9.596e-05,2]
[419956246,1775550631959,-558.72573799,9.596e-05,2]
[419956247,1775550631968,-500.0,9.596e-05,2]
[419956248,1775550631978,-184.24799768,9.596e-05,2]
[419956249,1775550631987,-500.0,9.596e-05,2]
[419956250,1775550631998,-202.45328362,9.596e-05,2]
[419956252,1775550632008,-500.0,9.596e-05,2]
[419956253,1775550632017,-210.99247258,9.596e-05,2]
[419956254,1775550632027,-500.0,9.596e-05,2]
[419956255,1775550632037,-180.87888806,9.596e-05,2]
[419956256,1775550632047,-500.0,9.596e-05,2]
[419956257,1775550632056,-500.0,9.596e-05,2]
[419956259,1775550632065,-854.71,9.596e-05,2]
[419956260,1775550632075,-864.65573411,9.596e-05,2]
[419956262,1775550632088,-1293.03667092,9.596e-05,2]
[419956263,1775550632098,-1000.0,9.598e-05,2]
[419956264,1775550632107,-2412.22746739,9.598e-05,2]
[419956271,1775550637781,-30620.18623261,9.598e-05,2]
[419956272,1775550637792,-201.58,9.6e-05,2]
[419956273,1775550637802,-2000.0,9.763e-05,2]
[419956274,1775550637811,-200.0,9.763e-05,2]
[419956275,1775550637821,-854.71,9.87e-05,2]
[419956276,1775550637831,-161.39,0.00010056,2]
[419956277,1775550637841,-258.21660917,0.00010109,2]
[419956278,1775550637852,-200.0,0.00010109,2]
[419956279,1775550637862,-623.58710448,0.00010109,2]
[419956280,1775550637872,-848.26992489,0.00010109,2]
[419956281,1775550637881,-174.61919141,0.00010109,2]
[419956282,1775550637891,-5893.72,0.00010116,2]
[419956283,1775550637902,-854.71,0.00010144,2]
[419956284,1775550637912,-1500.0,0.00010253,2]
[419956285,1775550637921,-250.0,0.00010319,2]
[419956286,1775550637931,-420.0,0.00010336,2]
[419956287,1775550637942,-854.71,0.00010418,2]
[419956288,1775550637952,-255.0,0.00010446,2]
[419956289,1775550637962,-161.39,0.0001047,2]
[419956290,1775550637972,-181.08010149,0.00010657,2]
[419956291,1775550637981,-854.71,0.00010692,2]
[419956292,1775550637991,-34587.76638813,0.00010705,2]
[419956293,1775550638001,-161.39,0.00010885,2]
[419956294,1775550638010,-1600.0,0.00010898,2]
[419956295,1775550638019,-2171.99624712,0.000109,2]
[419956296,1775550638029,-2171.99624712,0.000109,2]
[419956297,1775550638038,-1347.0,0.00010947,2]
[419956298,1775550638047,-6022.0,0.00010947,2]
[419956299,1775550638057,-854.71,0.00010966,2]
[419956300,1775550638067,-2000.0,0.00010983,2]
[419956301,1775550638077,-157.0,0.00011,2]
[419956302,1775550638086,-157.0,0.00011,2]
[419956303,1775550638096,-15792.10833844,0.00011099,2]
[419956304,1775550638106,-15792.10833836,0.00011099,2]
[419956305,1775550638115,-15792.10833836,0.00011099,2]
[419956306,1775550638125,-151.0,0.00011099,2]
[419956307,1775550638135,-226.90138371,0.000111,2]
[419956308,1775550638144,-160.0,0.00011153,2]
[419956309,1775550638154,-187.78006525,0.00011205,2]
[419956310,1775550638163,-854.71,0.0001124,2]
[419956311,1775550638173,-150.0,0.000113,2]
[419956312,1775550638182,-161.39,0.000113,2]
[419956313,1775550638191,-500.0,0.00011325,2]
[419956314,1775550638201,-2171.99624712,0.00011326,2]
[419956315,1775550638210,-2975.021,0.00011353,2]
[419956316,1775550638221,-150.683,0.00011353,2]
[419956317,1775550638231,-587.0,0.00011369,2]
[419956318,1775550638240,-150.0,0.00011377,2]
[419956319,1775550638250,-1264.0,0.00011377,2]
[419956320,1775550638259,-1217.0,0.00011377,2]
[419956321,1775550638268,-925.0,0.00011377,2]
[419956322,1775550638277,-170.65,0.00011475,2]
[419956323,1775550638287,-433.0,0.0001149,2]
[419956324,1775550638296,-854.74132328,0.00011514,2]
[419956325,1775550638306,-151.0,0.00011631,2]
[419956326,1775550638315,-15792.10833836,0.00011631,2]
[419956327,1775550638325,-161.39,0.00011715,2]
[419956330,1775550638335,-194.72792766,0.00011753,2]
[419956331,1775550638344,-313.0,0.00012,2]
[419956333,1775550638354,-306.0,0.00012,2]
[419956335,1775550638364,-1000.0,0.00012,2]
[419956337,1775550638374,-500.0,0.00012055,2]
[419956339,1775550638383,-1100.0,0.00012055,2]
[419956341,1775550638393,-151.0,0.00012087,2]
[419956343,1775550638402,-5187.05,0.00012087,2]
[419956346,1775550638413,-299.99,0.00012087,2]
[419956348,1775550638422,-150.99,0.00012087,2]
[419956350,1775550638432,-2000.0,0.00012203,2]
[419956353,1775550638442,-2171.99624712,0.00012241,2]
[419956354,1775550638453,-1600.0,0.00012261,2]
[419956356,1775550638462,-201.93286099,0.00012301,2]
[419956358,1775550638472,-15792.10833836,0.00012343,2]
[419956360,1775550638483,-500.0,0.00012343,2]
[419956363,1775550638494,-942.200689,0.00012456,2]
[419956365,1775550638504,-823.0,0.00012506,2]
[419956366,1775550638515,-167.8283,0.000126,2]
[419956367,1775550638526,-736.0,0.00012639,2]
[419956368,1775550638536,-646.65982734,0.00012848,2]
[419956369,1775550638546,-209.40437684,0.00012849,2]
[419956370,1775550638556,-471.78915985,0.00012849,2]
[419956371,1775550638566,-226.85878256,0.00012858,2]
[419956372,1775550638575,-1204.49407432,0.00012862,2]
[419956373,1775550638584,-721.34575096,0.00012904,2]
[419956374,1775550638594,-158.32540339,0.00012909,2]
[419956375,1775550638603,-186.65232794,0.00012909,2]
[419956376,1775550638612,-320.01874701,0.00012911,2]
[419956377,1775550638622,-162.59921799,0.00012937,2]
[419956378,1775550638632,-202.12145965,0.00012972,2]
[419956379,1775550638641,-504.0,0.00013,2]
[419956380,1775550638651,-12073.56812344,0.00013054,2]
[419956381,1775550638661,-15792.10833836,0.00013054,2]
[419956382,1775550638671,-2171.99624712,0.00013156,2]
[419956383,1775550638681,-251.01239632,0.00013183,2]
[419956384,1775550638690,-601.01503884,0.00013183,2]
[419956385,1775550638700,-1182.95455218,0.00013183,2]
[419956386,1775550638710,-544.88452835,0.00013191,2]
[419956387,1775550638720,-3756.23022712,0.00013194,2]
[419956388,1775550638730,-304.56004066,0.00013246,2]
[419956389,1775550638739,-308.69732437,0.00013246,2]
[419956390,1775550638748,-718.35595926,0.0001328,2]
[419956391,1775550638757,-217.15233878,0.00013397,2]
[419956392,1775550638767,-2000.0,0.00013424,2]
[419956393,1775550638777,-500.0,0.00013425,2]
[419956394,1775550638786,-1100.0,0.00013425,2]
[419956395,1775550638796,-150.0,0.00013463,2]
[419956396,1775550638805,-150.0,0.00013463,2]
[419956397,1775550638814,-246.30142691,0.00013463,2]
[419956398,1775550638823,-150.0,0.00013463,2]
[419956399,1775550638833,-150.0,0.00013463,2]
[419956400,1775550638843,-150.0,0.00013463,2]
[419956401,1775550638852,-150.0,0.00013463,2]
[419956402,1775550638862,-150.0,0.00013463,2]
[419956403,1775550638872,-150.0,0.00013463,2]
[419956404,1775550638882,-150.0,0.00013463,2]
[419956405,1775550638892,-150.0,0.00013463,2]
[419956406,1775550638902,-150.0,0.00013463,2]
[419956407,1775550638911,-150.0,0.00013463,2]
[419956408,1775550638921,-150.0,0.00013489,2]
[419956409,1775550638931,-150.0,0.000135,2]
[419956410,1775550638941,-150.0,0.00013502,2]
[419956411,1775550638951,-150.0,0.00013507,2]
[419956412,1775550638961,-150.0,0.00013508,2]
[419956413,1775550638971,-150.0,0.00013513,2]
[419956414,1775550638980,-150.0,0.00013516,2]
[419956415,1775550638990,-150.0,0.00013538,2]
[419956416,1775550639000,-150.0,0.00013542,2]
[419956417,1775550639010,-150.0,0.00013542,2]
[419956418,1775550639020,-150.0,0.00013551,2]
[419956419,1775550639030,-150.0,0.00013551,2]
[419956420,1775550639041,-150.0,0.00013554,2]
[419956421,1775550639050,-150.0,0.00013557,2]
[419956422,1775550639061,-2000.0,0.0001356,2]
[419956423,1775550639070,-2000.0,0.0001356,2]
[419956424,1775550639080,-150.0,0.00013563,2]
[419956425,1775550639090,-150.0,0.00013568,2]
[419956426,1775550639099,-150.0,0.00013575,2]
[419956427,1775550639109,-2000.0,0.0001358,2]
[419956428,1775550639119,-150.0,0.00013581,2]
[419956429,1775550639130,-150.0,0.00013594,2]
[419956430,1775550639139,-150.0,0.00013595,2]
[419956431,1775550639149,-5000.0,0.00013599,2]
[419956432,1775550639159,-481.8216123,0.00013599,2]
[419956433,1775550639169,-454.45613352,0.00013599,2]
[419956434,1775550639179,-150.0,0.00013599,2]
[419956435,1775550639189,-150.0,0.00013599,2]
[419956436,1775550639198,-157.0,0.000136,2]
[419956437,1775550639208,-163.15,0.000136,2]
[419956438,1775550639219,-869.43266541,0.0001361,2]
[419956439,1775550639229,-396.90130463,0.0001361,2]
[419956440,1775550639239,-1360.07844521,0.0001361,2]
[419956441,1775550639248,-150.0,0.00013613,2]
[419956442,1775550639258,-150.0,0.00013613,2]
[419956444,1775550639269,-150.0,0.0001362,2]
[419956445,1775550639686,-150.0,0.0001362,2]
[419956446,1775550639696,-1600.0,0.00013623,2]
[419956447,1775550639706,-150.0,0.00013639,2]
[419956448,1775550639716,-150.0,0.00013639,2]
[419956449,1775550639725,-150.0,0.00013644,2]
[419956450,1775550639734,-150.0,0.00013647,2]
[419956451,1775550639744,-150.0,0.0001365,2]
[419956452,1775550639754,-150.0,0.0001365,2]
[419956453,1775550639763,-150.0,0.0001366,2]
[419956454,1775550639773,-150.0,0.00013662,2]
[419956455,1775550639782,-1254.0,0.00013672,5]
[419956456,1775550639792,-500.0,0.00013673,2]
[419956457,1775550639802,-500.0,0.00013673,2]
[419956458,1775550639812,-500.0,0.00013673,2]
[419956459,1775550639821,-500.0,0.00013673,2]
[419956460,1775550639830,-500.0,0.00013673,2]
[419956461,1775550639840,-500.0,0.00013673,2]
[419956462,1775550639850,-500.32203461,0.00013673,2]
[419956463,1775550639860,-500.0,0.00013673,2]
[419956464,1775550639870,-500.0,0.00013673,2]
[419956465,1775550639880,-315.97186803,0.00013673,2]
[419956466,1775550639889,-349.01981225,0.00013673,2]
[419956467,1775550639899,-159.62018257,0.00013673,2]
[419956468,1775550639910,-633.41932003,0.00013673,2]
[419956470,1775550639920,-150.0,0.00013673,2]
[419956471,1775550639930,-153.778824,0.00013673,2]
[419956474,1775550639940,-150.0,0.00013683,2]
[419956476,1775550639950,-150.0,0.00013687,2]
[419956478,1775550639959,-150.0,0.0001369,2]
[419956479,1775550639968,-500.0,0.00013698,2]
[419956480,1775550639978,-500.0,0.00013698,2]
[419956481,1775550639988,-500.0,0.00013698,2]
[419956482,1775550639997,-500.0,0.00013698,2]
[419956483,1775550640008,-500.0,0.00013698,2]
[419956484,1775550640018,-500.0,0.00013698,2]
[419956485,1775550640027,-500.0,0.00013698,2]
[419956486,1775550640037,-500.0,0.00013698,2]
[419956487,1775550640047,-500.0,0.00013698,2]
[419956488,1775550640057,-500.0,0.00013698,2]
[419956489,1775550640067,-500.0,0.00013698,2]
[419956490,1775550640076,-500.0,0.00013698,2]
[419956491,1775550640086,-500.0,0.00013698,2]
[419956492,1775550640096,-500.0,0.00013699,2]
[419956493,1775550640105,-150.0,0.00013699,2]
[419956494,1775550640115,-150.0,0.00013699,2]
[419956495,1775550640125,-150.0,0.00013699,2]
[419956496,1775550640134,-166.66,0.00013699,2]
[419956497,1775550640143,-1566.0,0.00013699,5]
[419956498,1775550640154,-200.0,0.00013699,2]
[419956499,1775550640163,-151.0,0.00013699,2]
[419956500,1775550640173,-190.030505,0.00013699,2]
[419956501,1775550640183,-151.0,0.00013699,2]
[419956502,1775550640192,-151.0,0.00013699,2]
[419956503,1775550640201,-151.0,0.00013699,2]
[419956504,1775550640211,-151.0,0.00013699,2]
[419956505,1775550640221,-151.445017,0.00013699,2]
[419956506,1775550640231,-151.0,0.00013699,2]
[419956507,1775550640240,-152.937549,0.00013699,2]
[419956508,1775550640250,-151.0,0.00013699,2]
[419956509,1775550640261,-151.0,0.00013699,2]
[419956510,1775550640272,-153.727416,0.00013699,2]
[419956511,1775550640283,-151.0,0.00013699,2]
[419956512,1775550640293,-151.0,0.00013699,2]
[419956513,1775550640304,-153.602066,0.00013699,2]
[419956514,1775550640314,-151.0,0.00013699,2]
[419956515,1775550640324,-151.0,0.00013699,2]
[419956516,1775550640334,-151.113203,0.00013699,2]
[419956517,1775550640344,-151.0,0.00013699,2]
[419956518,1775550640354,-151.0,0.00013699,2]
[419956519,1775550640364,-151.856308,0.00013699,2]
[419956520,1775550640375,-151.0,0.00013699,2]
[419956521,1775550640385,-151.0,0.00013699,2]
[419956522,1775550640395,-153.049986,0.00013699,2]
[419956523,1775550640405,-151.0,0.00013699,2]
[419956524,1775550640415,-151.768741,0.00013699,2]
[419956525,1775550640425,-184.581245,0.00013699,2]
[419956526,1775550640435,-151.0,0.00013699,2]
[419956527,1775550640445,-151.0,0.00013699,2]
[419956528,1775550640455,-151.0,0.00013699,2]
[419956529,1775550640464,-152.218793,0.00013699,2]
[419956530,1775550640474,-151.0,0.00013699,2]
[419956531,1775550640484,-151.111055,0.00013699,2]
[419956532,1775550640494,-151.0,0.00013699,2]
[419956533,1775550640504,-151.0,0.00013699,2]
[419956534,1775550640514,-151.0,0.00013699,2]
[419956535,1775550640524,-151.0,0.00013699,2]
[419956536,1775550640534,-151.0,0.00013699,2]
[419956537,1775550640544,-151.0,0.00013699,2]
[419956538,1775550640554,-151.925278,0.00013699,2]
[419956539,1775550640563,-151.0,0.00013699,2]
[419956540,1775550640573,-154.589636,0.00013699,2]
[419956541,1775550640582,-151.0,0.00013699,2]
[419956542,1775550640592,-151.0,0.00013699,2]
[419956543,1775550640602,-151.0,0.00013699,2]
[419956544,1775550640612,-151.0,0.00013699,2]
[419956545,1775550640621,-151.0,0.00013699,2]
[419956546,1775550640631,-151.0,0.00013699,2]
[419956547,1775550640641,-151.0,0.00013699,2]
[419956548,1775550640651,-151.042096,0.00013699,2]
[419956549,1775550640660,-151.0,0.00013699,2]
[419956550,1775550640670,-151.0,0.00013699,2]
[419956551,1775550640679,-151.0,0.00013699,2]
[419956552,1775550640689,-151.0,0.00013699,2]
[419956553,1775550640699,-151.0,0.00013699,2]
[419956554,1775550640710,-152.10243,0.00013699,2]
[419956555,1775550640719,-152.3556,0.00013699,2]
[419956556,1775550640729,-151.0,0.00013699,2]
[419956557,1775550640738,-151.32066,0.00013699,2]
[419956558,1775550640748,-151.0,0.00013699,2]
[419956559,1775550640759,-151.0,0.00013699,2]
[419956560,1775550640768,-151.0,0.00013699,2]
[419956561,1775550640778,-151.0,0.00013699,2]
[419956562,1775550640787,-153.35994,0.00013699,2]
[419956563,1775550640797,-151.0,0.00013699,2]
[419956564,1775550640806,-151.587485,0.00013699,2]